Cogmind - Beta 17 @@@ ROGUE MODE // 2026.07.31 @ 20:04:14 Player: Conwew Result: Destroyed by H-66 Slayer with Gauss Rifle Performance ------------- Evolutions (5) 2500 Regions Visited (14) 2800 Robots Destroyed (152) 760 Value Destroyed (7219) 7219 Prototype IDs (29) 580 Alien Tech Used (0) 0 Bonus (3427) 3427 TOTAL SCORE: 17286 Bonus ------- High Alert Combat Kills 1335 Follower Combat Kills 1608 Entered Garrisons 200 Aligned with FarCom 300 Acquired ECA 300 Friendly Fire -316 Cogmind --------- Core Integrity 0/1000 Matter 252/300 Energy 100/100 System Corruption 5% Temperature Cool (0) Movement Core (50) Location -5/Factory Parts ------- > --- POWER (2) -------- (None) > --- PROPULSION (4) --- (None) > --- UTILITY (8) ------ Advanced Visual Processing Unit Enhanced Optical Array Encrypted Comm Array > --- WEAPON (3) ------- (None) > --- INVENTORY (5) ---- Damper Plating Peak State ------------ > --- POWER ------------ Compact Particle Reactor Compact Particle Reactor > --- PROPULSION ------- Improved Titanium Leg Flexi-carbon Leg Flexi-carbon Leg Flexi-carbon Leg > --- UTILITY ---------- Advanced Cooling System Trap Scanner Advanced Visual Processing Unit Improved Signal Interpreter Encrypted Comm Array Advanced Targeting Computer Kinecellerator Experimental EM Shield > --- WEAPON ----------- Heavy Mass Driver Compact Linear Accelerator > --- INVENTORY -------- Damper Plating [Rating: 98] Favorites ----------- Power Light Nuclear Core Engine Light Deuterium Engine Power Core Light Nuclear Core Reactor Light Antimatter Reactor Propulsion Improved Carbon-fiber Leg Leg Improved Carbon-fiber Leg Utility Advanced Targeting Computer Device Improved Heat Sink Processor Advanced Targeting Computer Protection Improved Medium Armor Plating Weapon Firepult Energy Gun Medium Laser Energy Cannon Firepult Ballistic Gun Battle Rifle Ballistic Cannon Heavy Mass Driver Launcher EMP Blaster Build | -11 -10 -10 -10 -9 -8 -8 -8 -7 -6 -6 -6 -6 -6 -5 ------- Run | Yrd Mat Min Exi Min Mat Gar Mat Fac Fac Was Fac Low Low Fac Slots Evolved 10 | . . . . . 4 . . 2 2 . . . . 2 Power 1 | . . . . . . . . . 1 . . . . . Propulsion 2 | . . . . . 1 . . 1 . . . . . . Utility 6 | . . . . . 3 . . . 1 . . . . 2 Weapon 1 | . . . . . . . . 1 . . . . . . Parts Attached 85 | 5 1 3 1 2 18 4 7 9 4 4 5 1 5 16 Power 14 | 1 . 1 . . 2 1 . 1 1 . . . 3 4 Engine 5 | 1 . 1 . . . 1 . 1 . . . . 1 . Core 6 | . . . . . 2 . . . 1 . . . 2 1 Reactor 3 | . . . . . . . . . . . . . . 3 Propulsion 23 | 2 . 1 . 1 7 1 1 4 . 1 . . 2 3 Treads . | . . . . . . . . . . . . . . . Leg 23 | 2 . 1 . 1 7 1 1 4 . 1 . . 2 3 Wheel . | . . . . . . . . . . . . . . . Hover . | . . . . . . . . . . . . . . . Flight . | . . . . . . . . . . . . . . . Utility 36 | . 1 1 . 1 9 2 5 2 2 2 3 1 . 7 Device 15 | . . 1 . 1 1 2 1 1 . . 2 1 . 5 Storage . | . . . . . . . . . . . . . . . Processor 6 | . . . . . 3 . . 1 . . 1 . . 1 Hackware . | . . . . . . . . . . . . . . . Protection 15 | . 1 . . . 5 . 4 . 2 2 . . . 1 Artifact . | . . . . . . . . . . . . . . . Weapon 12 | 2 . . 1 . . . 1 2 1 1 2 . . 2 Energy Gun 3 | 2 . . . . . . . 1 . . . . . . Energy Cannon 3 | . . . 1 . . . . . 1 . 1 . . . Ballistic Gun 3 | . . . . . . . . 1 . 1 1 . . . Ballistic Cannon 2 | . . . . . . . . . . . . . . 2 Launcher 1 | . . . . . . . 1 . . . . . . . Special Weapon . | . . . . . . . . . . . . . . . Impact Weapon . | . . . . . . . . . . . . . . . Slashing Weapon . | . . . . . . . . . . . . . . . Piercing Weapon . | . . . . . . . . . . . . . . . Special Melee Weapon . | . . . . . . . . . . . . . . . Unidentified Prototypes 6 | . . . . 1 . . . . . . . . . 5 Parts Lost 30 | . . . . 2 5 . 9 2 . . . . . 12 Power 3 | . . . . . 1 . . 1 . . . . . 1 Propulsion 9 | . . . . 1 3 . 1 . . . . . . 4 Utility 14 | . . . . 1 1 . 6 1 . . . . . 5 Weapon 4 | . . . . . . . 2 . . . . . . 2 Highest Loss Streak 9 | . . . . 2 4 . 4 2 . . . . . 9 To Critical Strikes . | . . . . . . . . . . . . . . . Average Backups 3 | . . 4 5 4 4 4 4 3 3 3 4 2 2 1 Power . | . . . 1 1 . . . 1 1 1 . . . . Propulsion 2 | . . 3 4 3 3 3 3 1 2 1 1 1 1 . Utility . | . . . . . 1 1 . . . . 2 1 1 1 Weapon . | . . . . . . . . . . . . . . . Tool/Special . | . . . . . . . . . . . . . . . Unused Backups 3 | . . . . . 1 . . . . . 1 . 1 . Power 1 | . . . . . . . . . . . 1 . . . Propulsion 1 | . . . . . . . . . . . . . 1 . Utility 1 | . . . . . 1 . . . . . . . . . Weapon . | . . . . . . . . . . . . . . . Tool/Special . | . . . . . . . . . . . . . . . Average Slot Usage (%) 86 | . 75 99 91 70 85 90 79 78 90 82 81 100 100 82 Engine 4 | . 14 14 14 1 . 1 9 6 6 6 6 6 4 . Core 4 | . . . . . 8 7 . . 6 6 6 6 8 5 Leg 26 | . 28 28 28 27 24 27 26 29 26 26 26 26 26 21 Device 14 | . . 13 14 25 22 18 6 6 6 . 1 20 20 17 Processor 11 | . . . . . 12 9 9 13 13 13 13 20 20 16 Protection 8 | . 4 14 14 1 7 18 20 13 13 7 5 . . 3 Energy Gun 3 | . 28 28 12 . . . . 1 6 6 4 . . 2 Energy Cannon 4 | . . . 7 14 9 9 5 . 3 1 1 6 6 . Ballistic Gun 4 | . . . . . . . . 4 6 10 13 13 13 . Peak Build Rating 98 | 5 6 10 28 35 52 53 53 43 52 61 64 56 61 98 Average Rating 47 | 3 5 9 20 33 48 48 39 36 47 59 60 55 58 73 On Entrance 35 | . 5 6 10 28 35 48 53 20 38 52 60 56 56 61 Avg Prop Armor Cover (%) 5 | . . . . . . . 5 . . . . . . 5 Naked Turns . | . . . . . . . . . . . . . . . Heaviest Build 71 | 9 12 13 31 31 43 53 53 33 41 68 71 32 35 65 Greatest Support 80 | 20 20 20 20 20 46 50 50 71 71 71 71 71 73 80 Greatest Overweight (x) 2 | . . . 1 2 1 1 1 . . . . . . . Average Overweight (x) . | . . . . 1 . . . . . . . . . . Largest Inventory Capacity 5 | 5 5 5 5 5 5 5 5 5 5 5 5 5 5 5 Average Capacity 5 | 5 5 5 5 5 5 5 5 5 5 5 5 5 5 5 Most Carried 5 | . 1 5 5 5 5 5 5 5 3 4 5 5 5 5 Average Carried 4 | . . 4 5 4 4 4 4 3 3 3 4 5 5 4 Final Capacity 5 | 5 5 5 5 5 5 5 5 5 5 5 5 5 5 5 Final Carried 5 | . 1 5 5 5 5 4 5 4 3 3 5 5 5 4 Class Distribution -------------------- 41% | Mutant 19% | Scavenger-Skirmisher 18% | Skirmisher 14% | Gunner 4% | Derelict-Gunner Dominant Class ---------------- Mutant | -10/Materials Mutant | -10/Mines Mutant | -10/Exiles Skirmisher | -9/Mines Scavenger-Skirmisher | -8/Materials Mutant | -8/Garrison Mutant | -8/Materials Mutant | -7/Factory Tank | -6/Factory Skirmisher | -6/Waste Skirmisher | -6/Factory Gunner | -6/Lower Caves Gunner | -6/Lower Caves Scavenger-Skirmisher | -5/Factory Resources | -11 -10 -10 -10 -9 -8 -8 -8 -7 -6 -6 -6 -6 -6 -5 ----------- Run | Yrd Mat Min Exi Min Mat Gar Mat Fac Fac Was Fac Low Low Fac Matter Collected 2167 | 185 57 48 . 20 180 49 185 159 . 84 152 34 169 845 Remotely . | . . . . . . . . . . . . . . . Salvage Created 6243 | . 92 326 . 123 1160 963 1561 128 . . 63 77 351 1399 Parts 232 | . 1 11 . 7 33 29 49 11 . . 2 4 10 75 Haulers Intercepted 2 | . . . . . 2 . . . . . . . . . Recyclers Shooed 2 | . . . . . . . 1 . . . . . . 1 Parts Field Recycled . | . . . . . . . . . . . . . . . Retrieved Matter . | . . . . . . . . . . . . . . . Parts Self-Destructed 46 | . . . . . . . . . . . . 10 36 . Prevented 2 | . . . . . . . . . . . . 2 . . Parts Restored . | . . . . . . . . . . . . . . . Kills | -11 -10 -10 -10 -9 -8 -8 -8 -7 -6 -6 -6 -6 -6 -5 ------- Run | Yrd Mat Min Exi Min Mat Gar Mat Fac Fac Was Fac Low Low Fac Combat Hostiles Destroyed 127 | . 2 6 . 3 18 25 29 5 . . 3 2 5 29 Guns 20 | . 2 5 . . . . . 5 . . 3 2 3 . Cannons 41 | . . . . . 2 5 5 . . . . . 1 28 AOE 38 | . . . . 3 4 14 17 . . . . . . . Classes Destroyed 19 | . 1 2 . 1 5 3 4 . . . . . . 3 Worker 6 | . . 1 . . 1 . 1 . . . . . . 3 Builder 7 | . . . . . 5 . 2 . . . . . . . Tunneler 2 | . . . . . 2 . . . . . . . . . Hauler 2 | . . . . . 2 . . . . . . . . . Recycler 2 | . . . . . . . 1 . . . . . . 1 Mechanic 1 | . . . . . . . 1 . . . . . . . Watcher 3 | . . . . . . . 2 . . . . . . 1 Swarmer 30 | . . 1 . . . 12 6 3 . . 1 1 1 5 Cutter 2 | . . . . . . 2 . . . . . . . . Saboteur 2 | . . . . . . . . . . . . . . 2 Grunt 51 | . 2 5 . 2 11 6 15 1 . . . . 1 8 Brawler 1 | . . . . . . . 1 . . . . . . . Duelist 4 | . . . . 1 1 . 1 . . . . . . 1 Sentry 20 | . . . . . 4 3 6 . . . 2 1 1 3 Specialist 3 | . . . . . . . . . . . . . . 3 Hunter 6 | . . . . . 2 . . . . . . . 1 3 Programmer 7 | . . . . . . 1 . 1 . . . . 1 4 Behemoth 1 | . . . . . . 1 . . . . . . . . Thug 1 | . . 1 . . . . . . . . . . . . Mutant 1 | . . . . . . . . . . . . . . 1 Best Kill Streak 11 | . 2 2 . 2 11 8 10 3 . . 1 1 2 9 Combat Bots Only 8 | . 2 2 . 2 6 8 7 3 . . 1 1 2 7 Max Kills in Single Turn 4 | . 1 2 . 2 3 4 4 1 . . 1 1 1 2 Gunslinging . | . . . . . . . . . . . . . . . Exploded 3 | . . . . 2 1 3 3 . . . . . . . Melee . | . . . . . . . . . . . . . . . Uniques/NPCs Destroyed . | . . . . . . . . . . . . . . . Combat | -11 -10 -10 -10 -9 -8 -8 -8 -7 -6 -6 -6 -6 -6 -5 -------- Run | Yrd Mat Min Exi Min Mat Gar Mat Fac Fac Was Fac Low Low Fac Hostile Shots Fired 684 | . 8 37 . 5 45 38 150 19 . . 43 3 31 305 Missed 227 | . 2 16 . . 15 14 41 3 . . 16 . 10 110 Hits 457 | . 6 21 . 5 30 24 109 16 . . 27 3 21 195 Melee 11 | . . . . 3 . 1 5 . . . . . . 2 Projectile 446 | . 6 21 . 2 30 23 104 16 . . 27 3 21 193 Critical Strikes 15 | . . 1 . . 1 . 6 . . . 1 . . 6 Actively Blocked 1 | . . . . . 1 . . . . . . . . . Part Disruptions 2 | . . . . . . . . . . . . . . 2 Damage Taken 8221 | . 75 280 . 165 552 574 1759 433 . . 343 42 440 3558 Core 1737 | . 28 43 . 80 14 25 299 120 . . 36 12 75 1005 Absorbed by Shields . | . . . . . . . . . . . . . . . Redirected to Shielding 116 | . . . . . 106 . . 10 . . . . . . Ignored by Resistances 48 | . . . . . . . 48 . . . . . . . Regen/Repaired (Parts) 716 | . . . . . . . . . . . 5 . 70 641 Core Remaining (%) 68 | 100 . . . 39 . . 38 82 . . . . 85 . Volleys Fired 240 | . 6 29 . 5 22 29 31 9 . . 14 2 17 76 Largest 3 | . 2 2 . 1 1 1 1 2 . . 3 3 3 3 Hottest 250 | . 100 100 . 250 250 250 250 93 . . 145 145 145 155 Shots Fired 360 | . 12 58 . 5 22 29 31 18 . . 40 6 51 88 Gun 171 | . 12 58 . . . . . 18 . . 37 4 34 8 Cannon 176 | . . . . 5 22 29 18 . . . 3 2 17 80 Launcher 13 | . . . . . . . 13 . . . . . . . Special . | . . . . . . . . . . . . . . . Kinetic 154 | . . . . . . . . 9 . . 26 4 34 81 Thermal 193 | . 12 58 . 5 22 29 18 9 . . 14 2 17 7 Explosive . | . . . . . . . . . . . . . . . Electromagnetic 13 | . . . . . . . 13 . . . . . . . Robot Hit Streak 17 | . 12 13 . 4 9 10 9 17 . . 5 2 12 9 Robot Miss Streak 5 | . . 3 . 5 5 4 3 5 . . 4 1 2 3 Penetration Max 1 | . . . . . . . . . . . . . 1 . Secondary Targets 2 | . . 2 . . . . . . . . . . . . Max Gunslinging Chain 1 | . . 1 . . . . . . . . . . . . Shots Hit Robots 239 | . 12 36 . 4 19 13 21 15 . . 23 3 33 60 Core Hits 269 | . 5 15 . 4 41 40 74 26 . . 26 3 9 26 Critical Kills 1 | . . . . . . . . . . . . . . 1 Critical Parts Destroyed 2 | . . . . . . . . . . . 1 . 1 . Critical Strikes 15 | . 2 4 . . . . . . . . 1 . 1 7 Burn 6 | . 2 4 . . . . . . . . . . . . Meltdown 1 | . . . . . . . . . . . . . . 1 Destroy 2 | . . . . . . . . . . . 1 . 1 . Blast 6 | . . . . . . . . . . . . . . 6 Melee Attacks . | . . . . . . . . . . . . . . . Impact . | . . . . . . . . . . . . . . . Slashing . | . . . . . . . . . . . . . . . Piercing . | . . . . . . . . . . . . . . . Sneak Attacks . | . . . . . . . . . . . . . . . Combat Hostiles . | . . . . . . . . . . . . . . . Follow-up Attacks . | . . . . . . . . . . . . . . . Damage Inflicted 12505 | . 151 497 . 240 1842 1729 2758 233 . . 346 71 785 3853 Guns 1729 | . 151 497 . . . . . 231 . . 346 40 392 72 Cannons 5200 | . . . . 58 310 298 330 . . . . 31 393 3780 Explosions 5573 | . . . . 182 1532 1431 2428 . . . . . . . Melee . | . . . . . . . . . . . . . . . Ramming 3 | . . . . . . . . 2 . . . . . 1 Kinetic 4483 | . . . . . . . . 138 . . 224 40 392 3689 Thermal 7331 | . 151 497 . 240 1842 1729 2070 93 . . 122 31 393 163 Explosive . | . . . . . . . . . . . . . . . Electromagnetic 688 | . . . . . . . 688 . . . . . . . Impact . | . . . . . . . . . . . . . . . Slashing . | . . . . . . . . . . . . . . . Piercing . | . . . . . . . . . . . . . . . Highest Corruption 5 | . . . . . . 1 1 . . . . . . 5 Average Corruption 1 | . . . . . . 1 1 . . . . . . 1 Corruption Purged . | . . . . . . . . . . . . . . . Corruption Blocked . | . . . . . . . . . . . . . . . Effects 21 | . . . . . . 7 4 . . . . . . 10 Message Errors 10 | . . . . . . 4 3 . . . . . . 3 Matter Fused 5 | . . . . . . 2 1 . . . . . . 2 Heat Flow Errors 2 | . . . . . . . . . . . . . . 2 Data Loss (minor) 1 | . . . . . . . . . . . . . . 1 Data Loss (major) 2 | . . . . . . 1 . . . . . . . 1 Alerts 1 | . . . . . . . . . . . . . . 1 Overload Shots . | . . . . . . . . . . . . . . . Overflow Damage 602 | . . . . . 6 5 37 21 . . . . 11 522 Projectiles 533 | . . . . . . . . . . . . . 11 522 Explosions 69 | . . . . . 6 5 37 21 . . . . . . Melee . | . . . . . . . . . . . . . . . Knockbacks 17 | . . . . . . . . . . . . . . 17 Impact . | . . . . . . . . . . . . . . . Kinetic 15 | . . . . . . . . . . . . . . 15 Secondary 2 | . . . . . . . . . . . . . . 2 Self-Inflicted Damage 619 | . . . . 43 82 287 7 200 . . . . . . Shots 37 | . . . . 4 10 17 3 3 . . . . . . Rammed 1 | . . . . . . . . . . . . . . 1 Targets Rammed 3 | . . . . . . . . 2 . . . . . 1 Kicked 2 | . . . . . . . . 2 . . . . . . Crushed . | . . . . . . . . . . . . . . . Highest Temperature 666 | . 135 168 . 428 401 344 666 6 . . 276 . 30 253 Average Temperature 122 | . 71 70 . 191 147 128 175 6 . . 118 . 12 86 Received Heat Transfer 1845 | . 42 165 . 12 198 81 711 63 . . 129 . 93 351 Effects 15 | . . . . 3 1 . 11 . . . . . . . Shutdowns 2 | . . . . . . . 2 . . . . . . . Energy Bleed 3 | . . . . 1 1 . 1 . . . . . . . Interference 2 | . . . . . . . 2 . . . . . . . Matter Decay 2 | . . . . . . . 2 . . . . . . . Short Circuit 3 | . . . . 1 . . 2 . . . . . . . Damage (minor) 1 | . . . . 1 . . . . . . . . . . Damage (core) 2 | . . . . . . . 2 . . . . . . . Siege Activations . | . . . . . . . . . . . . . . . Martial Activations . | . . . . . . . . . . . . . . . Shielding Activations . | . . . . . . . . . . . . . . . Robots Disrupted . | . . . . . . . . . . . . . . . Combat Hostiles . | . . . . . . . . . . . . . . . Robots Corrupted 3 | . . . . . . . 2 . . . . . . 1 Combat Hostiles 2 | . . . . . . . 2 . . . . . . . Parts Fried 2 | . . . . . . . . . . . . . . 2 Impact Corruptions 3 | . . . . . . . . . . . . . . 3 Robots Melted 31 | . . 1 . . 13 9 6 . . . . . 1 1 Combat Hostiles 26 | . . 1 . . 12 6 5 . . . . . 1 1 Parts Melted 124 | . 3 6 . 3 46 27 37 . . . . . 1 1 Heat Transferred 34323 | . 592 1776 . 1360 10240 8400 10790 110 . . 155 50 600 250 Parts Sabotaged . | . . . . . . . . . . . . . . . Parts Stolen . | . . . . . . . . . . . . . . . Parts Stripped . | . . . . . . . . . . . . . . . Power Chain Reactions 6 | . . . . . . . 6 . . . . . . . Alert | -11 -10 -10 -10 -9 -8 -8 -8 -7 -6 -6 -6 -6 -6 -5 ------- Run | Yrd Mat Min Exi Min Mat Gar Mat Fac Fac Was Fac Low Low Fac Maximum Alert Level 4 | . . . . . 1 4 4 2 . . 4 . . 2 Low Security (%) 43 | 100 100 100 . 100 91 11 . . 100 100 37 . . . Level 1 10 | . . . . . 8 4 . 60 . . . . . 3 Level 2 26 | . . . . . . 19 30 39 . . 11 . . 96 Level 3 11 | . . . . . . 42 13 . . . 32 . . . Level 4 9 | . . . . . . 21 56 . . . 17 . . . Level 5 . | . . . . . . . . . . . . . . . High Security . | . . . . . . . . . . . . . . . Max Security . | . . . . . . . . . . . . . . . Peak Influence 1335 | . 44 163 . 60 316 1305 1335 578 193 60 1186 . . 678 Initial 635 | . . . . . . 70 635 578 193 60 . . . 434 Average 404 | . 13 62 . 10 79 767 1011 378 184 11 598 . . 507 Influence Increases 7430 | . 64 308 . 100 839 1235 1012 261 . . 1614 240 737 1020 Destroy 0b10 Robot/C 3600 | . 40 240 . 60 420 500 580 100 . . 600 120 340 600 Destroy 0b10 Robot/NC 160 | . . 5 . . 50 15 35 . . . 25 . 5 25 Destroy Leader 642 | . 10 50 . 10 114 20 134 20 . . 112 . 40 132 Allied During Kill 1312 | . . 13 . . 21 . . . . . 737 120 352 69 Successful Hack 47 | . 14 . . . 13 16 . 2 . . . . . 2 Disable Machine 345 | . . . . . 90 60 45 60 . . 60 . . 30 Anti-Garrison Action 650 | . . . . . . 500 150 . . . . . . . Destroy Structure 464 | . . . . 30 116 64 68 34 . . 80 . . 72 Lose Combat Pursuer 210 | . . . . . 15 60 . 45 . . . . . 90 Influence Decreases 6752 | . 64 298 10 100 731 38 1046 1135 224 173 434 763 704 1032 Entered New Map 2547 | . . . 10 . . 38 670 693 204 113 . 437 126 256 Time Decay 3206 | . 64 278 . 80 392 . 286 422 20 60 314 326 478 486 Lost Part 300 | . . . . 20 50 . 90 20 . . . . . 120 Lost Ally 441 | . . 20 . . 31 . . . . . 120 . 100 170 Purge Threat 258 | . . . . . 258 . . . . . . . . . Squads Dispatched 26 | . . . . . 3 . 7 2 . . 6 . 1 7 Investigation 4 | . . . . . 1 . 1 . . . 1 . . 1 Extermination 5 | . . . . . . . . 1 . . 1 . . 3 Reinforcement 9 | . . . . . 2 . 1 . . . 3 . . 3 Assault 6 | . . . . . . . 4 . . . 1 . 1 . Garrison 2 | . . . . . . . 1 1 . . . . . . Intercept . | . . . . . . . . . . . . . . . Searches Triggered . | . . . . . . . . . . . . . . . Construction Impeded 2 | . . . . . 1 . 1 . . . . . . . Haulers Reinforced 3 | . . . . . . . . . . . 3 . . . Active Scanning Responses . | . . . . . . . . . . . . . . . Cargo Convoy Interrupts 1 | . . . . . . . . . . . . . . 1 Stealth | -11 -10 -10 -10 -9 -8 -8 -8 -7 -6 -6 -6 -6 -6 -5 --------- Run | Yrd Mat Min Exi Min Mat Gar Mat Fac Fac Was Fac Low Low Fac Distress Signals 9 | . . . . 1 3 . 3 . . . 1 . . 1 Communications Jammed . | . . . . . . . . . . . . . . . Distress Signals . | . . . . . . . . . . . . . . . Times Spotted 223 | . 5 13 . 3 33 26 50 9 . . 18 3 12 51 Peak Tracking Total 11 | . 3 4 . 3 5 5 11 4 . . 4 2 7 8 Tactical Retreats 6 | . . . . . 1 2 . 1 . . . . . 2 Traps | -11 -10 -10 -10 -9 -8 -8 -8 -7 -6 -6 -6 -6 -6 -5 ------- Run | Yrd Mat Min Exi Min Mat Gar Mat Fac Fac Was Fac Low Low Fac Traps Triggered 11 | . . . . . 1 6 1 . 1 . . . . 2 Indirectly . | . . . . . . . . . . . . . . . Trap Hack Attempts . | . . . . . . . . . . . . . . . Triggered . | . . . . . . . . . . . . . . . Disarmed . | . . . . . . . . . . . . . . . Reprogrammed . | . . . . . . . . . . . . . . . Reused . | . . . . . . . . . . . . . . . Traps Extracted . | . . . . . . . . . . . . . . . Installed . | . . . . . . . . . . . . . . . Triggered . | . . . . . . . . . . . . . . . Machines | -11 -10 -10 -10 -9 -8 -8 -8 -7 -6 -6 -6 -6 -6 -5 ---------- Run | Yrd Mat Min Exi Min Mat Gar Mat Fac Fac Was Fac Low Low Fac Machines Disabled 33 | . . . . . 6 12 4 4 . . 4 . 1 2 Max in Single Turn 4 | . . . . . 1 2 1 4 . . 1 . . 1 Garrison Access 1 | . . . . . . . 1 . . . . . . . Garrison Relay 6 | . . . . . . 6 . . . . . . . . Phase Generator 1 | . . . . . . 1 . . . . . . . . Machines Repaired . | . . . . . . . . . . . . . . . Machines Dismantled . | . . . . . . . . . . . . . . . Machines Sabotaged . | . . . . . . . . . . . . . . . Overloaded Fab Kills . | . . . . . . . . . . . . . . . Hacking | -11 -10 -10 -10 -9 -8 -8 -8 -7 -6 -6 -6 -6 -6 -5 --------- Run | Yrd Mat Min Exi Min Mat Gar Mat Fac Fac Was Fac Low Low Fac Machines Accessed 24 | . 3 . 2 . 7 3 1 5 . . . . . 3 Terminals 16 | . 3 . . . 5 3 1 4 . . . . . . Fabricators . | . . . . . . . . . . . . . . . Repair Stations 1 | . . . . . . . . . . . . . . 1 Recycling Units . | . . . . . . . . . . . . . . . Scanalyzers 3 | . . . . . 1 . . 1 . . . . . 1 Garrison Access 2 | . . . . . 1 . . . . . . . . 1 Total Hacks 49 | . 5 . 5 . 12 6 4 9 . . . . . 8 Successful 29 | . 3 . 5 . 7 2 1 5 . . . . . 6 Failed 20 | . 2 . . . 5 4 3 4 . . . . . 2 Catastrophic 8 | . . . . . 2 2 1 2 . . . . . 1 Database Lockouts . | . . . . . . . . . . . . . . . Manual 25 | . 4 . 1 . 9 1 4 6 . . . . . . Terminals 31 | . 5 . . . 9 6 4 7 . . . . . . Fabricators . | . . . . . . . . . . . . . . . Repair Stations 2 | . . . . . . . . . . . . . . 2 Recycling Units . | . . . . . . . . . . . . . . . Scanalyzers 8 | . . . . . 2 . . 2 . . . . . 4 Garrison Access 3 | . . . . . 1 . . . . . . . . 2 Terminal Hacks 11 | . 1 . 5 . 2 2 . 1 . . . . . . Record 4 | . . . 4 . . . . . . . . . . . Emergency Access Points 1 | . . . . . . 1 . . . . . . . . Alert Level 1 | . . . . . . . . 1 . . . . . . Unreport Threat 2 | . . . . . 2 . . . . . . . . . Locate Traps 1 | . 1 . . . . . . . . . . . . . Security Stations 1 | . . . . . . 1 . . . . . . . . Proto ID Catalog 1 | . . . 1 . . . . . . . . . . . Fabricator Hacks . | . . . . . . . . . . . . . . . Repair Station Hacks 2 | . . . . . . . . . . . . . . 2 Scan Component 1 | . . . . . . . . . . . . . . 1 Repair 1 | . . . . . . . . . . . . . . 1 Recycling Unit Hacks . | . . . . . . . . . . . . . . . Scanalyzer 6 | . . . . . . . . 2 . . . . . 4 Retrieve Study 6 | . . . . . . . . 2 . . . . . 4 Garrison Access Hacks 1 | . . . . . 1 . . . . . . . . . Unlock Access 1 | . . . . . 1 . . . . . . . . . Unauthorized Hacks 9 | . 2 . . . 4 . 1 2 . . . . . . Terminals 9 | . 2 . . . 4 . 1 2 . . . . . . Botnet 9 | . 2 . . . 4 . 1 2 . . . . . . Fabricators . | . . . . . . . . . . . . . . . Repair Stations . | . . . . . . . . . . . . . . . Recycling Units . | . . . . . . . . . . . . . . . Scanalyzers . | . . . . . . . . . . . . . . . Garrison Access . | . . . . . . . . . . . . . . . Data Cores Recovered . | . . . . . . . . . . . . . . . Used . | . . . . . . . . . . . . . . . Hacking Detections 17 | . 2 . . . 6 3 1 3 . . . . . 2 Full Trace Events 2 | . . . . . . 1 . . . . . . . 1 Feedback Events 1 | . . . . . . 1 . . . . . . . . Corruption 1 | . . . . . . 1 . . . . . . . . Feedback Blocked . | . . . . . . . . . . . . . . . Robot Schematics Acquired . | . . . . . . . . . . . . . . . Robots Built . | . . . . . . . . . . . . . . . Authchips . | . . . . . . . . . . . . . . . Time . | . . . . . . . . . . . . . . . Total Robot Build Rating . | . . . . . . . . . . . . . . . Part Schematics Acquired . | . . . . . . . . . . . . . . . Parts Built . | . . . . . . . . . . . . . . . Authchips . | . . . . . . . . . . . . . . . Time . | . . . . . . . . . . . . . . . Total Part Build Rating . | . . . . . . . . . . . . . . . Part Studies Acquired 6 | . . . . . . . . 2 . . . . . 4 Parts Repaired 1 | . . . . . . . . . . . . . . 1 Time 56 | . . . . . . . . . . . . . . 56 Parts Recycled . | . . . . . . . . . . . . . . . Recycled Matter . | . . . . . . . . . . . . . . . Retrieved Matter . | . . . . . . . . . . . . . . . Retrieved Components . | . . . . . . . . . . . . . . . Parts Scanalyzed . | . . . . . . . . . . . . . . . Part Schematics Acquired . | . . . . . . . . . . . . . . . Parts Damaged . | . . . . . . . . . . . . . . . Bothacking | -11 -10 -10 -10 -9 -8 -8 -8 -7 -6 -6 -6 -6 -6 -5 ------------ Run | Yrd Mat Min Exi Min Mat Gar Mat Fac Fac Was Fac Low Low Fac Used RIF Installer . | . . . . . . . . . . . . . . . Robots Hacked . | . . . . . . . . . . . . . . . Non-combat . | . . . . . . . . . . . . . . . Combat . | . . . . . . . . . . . . . . . Robot Hacks Applied . | . . . . . . . . . . . . . . . Relay Couplers Released 23 | . . . . . . 23 . . . . . . . . Machine Destruction 23 | . . . . . . 23 . . . . . . . . Fabnet Peak Effective % . | . . . . . . . . . . . . . . . Robots Rewired 2 | . . . . . . . . . . . . . 2 . Allies Hacked 1 | . . . . . . . . . . . . . . 1 Hacks Repelled . | . . . . . . . . . . . . . . . Allies | -11 -10 -10 -10 -9 -8 -8 -8 -7 -6 -6 -6 -6 -6 -5 -------- Run | Yrd Mat Min Exi Min Mat Gar Mat Fac Fac Was Fac Low Low Fac Total Allies 27 | . . 2 . 3 . . . . . 20 . . 2 . Largest Group 20 | . . 2 . 3 3 . . . . 20 20 13 13 10 Highest-Rated Group 766 | . . 42 . 40 40 . . . . 766 766 545 545 362 Highest-Rated Ally 50 | . . 31 . 16 16 . . . . 50 50 50 50 50 Initial Warlord ECA Mod 11 | . . . . . . . 11 10 9 9 9 9 9 8 Warlord Squad Rendezvous 3 | . . . . . . . . . . . . . . 3 Dakka 1 | . . . . . . . . . . . . . . 1 Chimera 1 | . . . . . . . . . . . . . . 1 Ghost 1 | . . . . . . . . . . . . . . 1 Total Orders . | . . . . . . . . . . . . . . . Ally Attacks 272 | . . 12 . . 29 . . . . . 135 10 71 15 Total Damage 6176 | . . 166 . . 295 . . . . . 3132 580 1662 341 Kills 59 | . . 6 . . 3 . . . . . 33 4 12 1 Allies Corrupted 1 | . . . . . . . . . . . . . 1 . Allies Melted 1 | . . . . . . . . . . . . . 1 . Intel | -11 -10 -10 -10 -9 -8 -8 -8 -7 -6 -6 -6 -6 -6 -5 ------- Run | Yrd Mat Min Exi Min Mat Gar Mat Fac Fac Was Fac Low Low Fac Active Infowar (turns) 7132 | . . . . 467 1348 . . 827 50 361 863 721 1222 1273 Optics 5317 | . . . . . . . . 827 50 361 863 721 1222 1273 Sensors 1815 | . . . . 467 1348 . . . . . . . . . Traps 3164 | . . . . . . . . . . . 57 721 1222 1164 Robot Analysis Total . | . . . . . . . . . . . . . . . Derelict Logs Recovered 6 | . . 3 . 2 . . . . . . . . 1 . Drone Launches . | . . . . . . . . . . . . . . . Drone Recoveries . | . . . . . . . . . . . . . . . Exploration | -11 -10 -10 -10 -9 -8 -8 -8 -7 -6 -6 -6 -6 -6 -5 ------------- Run | Yrd Mat Min Exi Min Mat Gar Mat Fac Fac Was Fac Low Low Fac Turns Passed 10664 | 48 193 642 328 582 1372 1361 623 1025 50 361 863 721 1222 1273 Spaces Moved 7238 | 36 130 454 215 282 835 972 271 650 29 284 672 602 905 901 Core 141 | 3 . . . . . . . . . . . . . 138 Treads . | . . . . . . . . . . . . . . . Legs 7097 | 33 130 454 215 282 835 972 271 650 29 284 672 602 905 763 Wheels . | . . . . . . . . . . . . . . . Hover . | . . . . . . . . . . . . . . . Flight . | . . . . . . . . . . . . . . . Fastest Speed 50 | 50 120 120 120 190 120 120 120 115 115 115 115 115 115 50 Average Speed 123 | 114 120 120 152 190 133 129 153 118 115 115 115 115 117 100 Slowest Speed 260 | 120 120 120 190 260 190 193 195 122 115 115 115 115 118 122 Overloaded Moves . | . . . . . . . . . . . . . . . Propulsion Burnouts . | . . . . . . . . . . . . . . . Robots Hopped . | . . . . . . . . . . . . . . . Potential Cave-ins . | . . . . . . . . . . . . . . . Cave-ins Triggered . | . . . . . . . . . . . . . . . Exploration Rate (%) 51 | 4 34 90 60 46 68 96 33 18 1 97 19 90 82 27 Regions Visited 14 Branch Regions 5 Pre-discovered Areas 5 | . . 2 1 1 . . . . . . . 1 . . Known Exits Taken 5 | . . . . . 1 . 1 . . . 1 1 1 . Unknown Exits Taken 6 | 1 1 1 1 1 . . . 1 . . . . . . Scrap Searched 8 | . . 1 . . . . . . . . . 4 3 . Spaces Dug . | . . . . . . . . . . . . . . . Terrain Destroyed 380 | . . . . 41 118 71 75 45 . . 2 1 6 21 Melee . | . . . . . . . . . . . . . . . Projectile 46 | . . . . 3 8 . 5 . . . 2 1 6 21 AOE 334 | . . . . 38 110 71 70 45 . . . . . . Terrain Rammed . | . . . . . . . . . . . . . . . Walls Destroyed . | . . . . . . . . . . . . . . . Machines Disabled . | . . . . . . . . . . . . . . . Actions | -11 -10 -10 -10 -9 -8 -8 -8 -7 -6 -6 -6 -6 -6 -5 --------- Run | Yrd Mat Min Exi Min Mat Gar Mat Fac Fac Was Fac Low Low Fac Total 8582 | 40 154 493 217 323 1071 1049 444 883 45 320 734 626 1026 1157 Wait 855 | . 17 2 . 33 181 26 133 209 12 20 33 21 30 138 Move 7226 | 35 129 453 214 281 835 971 270 649 29 283 671 601 904 901 Hop . | . . . . . . . . . . . . . . . Pick Up 26 | . 1 4 . 1 6 . 2 3 . 1 5 . . 3 Fast Attach 62 | 5 1 1 1 1 12 2 6 5 3 3 2 1 4 15 Attach 19 | . . . . 1 5 1 1 4 1 1 4 . . 1 Detach . | . . . . . . . . . . . . . . . Swap 6 | . . 2 . . 1 1 . . . . . . 1 1 Drop 60 | . . 2 2 1 9 4 1 2 . 7 5 1 5 21 Fire 240 | . 6 29 . 5 22 29 31 9 . . 14 2 17 76 Melee . | . . . . . . . . . . . . . . . Ram 1 | . . . . . . . . . . . . . . 1 Kick 2 | . . . . . . . . 2 . . . . . . Crush . | . . . . . . . . . . . . . . . Escape Stasis 15 | . . . . . . 15 . . . . . . . . Rewire 70 | . . . . . . . . . . 5 . . 65 . Trap . | . . . . . . . . . . . . . . . Miscellaneous . | . . . . . . . . . . . . . . . Route ------- -11/Scrapyard -10/Materials -10/Mines (discovered 4 exits: [*Mat x2] / *Exi / [*Sub]) -10/Exiles -9/Mines -8/Materials (discovered 4 exits: *Fac x3 / Gar) -8/Garrison (discovered 3 exits: *Mat x3) -8/Materials -7/Factory -6/Factory -6/Waste -6/Factory -6/Lower Caves -6/Lower Caves (discovered 2 exits: *Fac / *Zio) -5/Factory (discovered 3 exits: *Fac x2 / Ext) History --------- Turn | Location | Event 11 | -11/Scrapyard | Discovered new exit (range 15) 49 | -11/Scrapyard | Entered Materials 167 | -10/Materials | Discovered new exit (range 15) 242 | -10/Materials | Entered Mines 309 | -10/Mines | Build established: Mutant 383 | -10/Mines | Learned location of Storage (-9) 385 | -10/Mines | Learned Materials security intel 449 | -10/Mines | Received a Rocket Launcher from a helpful Derelict 658 | -10/Mines | Discovered new exit (range 11) 743 | -10/Mines | Discovered new exit (range 10) 808 | -10/Mines | Discovered new exit (range 8) 842 | -10/Mines | Deemed a non-threat by the Exiles lab entrance 843 | -10/Mines | Discovered new exit (range 5) 884 | -10/Mines | Entered Exiles 914 | -10/Exiles | Met 8R-AWN 932 | -10/Exiles | Met EX-HEX 972 | -10/Exiles | Met EX-BIN 988 | -10/Exiles | Aligned with FarCom system 989 | -10/Exiles | Given EX-Vault access code 1016 | -10/Exiles | Opened EX-Vault 1025 | -10/Exiles | Found Firepult 1066 | -10/Exiles | Warned to stay clear of 0b10 Research branches 1092 | -10/Exiles | Exiles lab attacked by MAIN.C 1136 | -10/Exiles | Learned location of Zion (-6) 1195 | -10/Exiles | Discovered new exit (range 10) 1212 | -10/Exiles | Left Exiles lab with Firepult 1212 | -10/Exiles | Entered Mines 1251 | -9/Mines | Core integrity fell below 50% 1323 | -9/Mines | Found a damaged Exp. Sensor Array with a note attached 1327 | -9/Mines | Found Prototype Device 1327 | -9/Mines | Identified Exp. Sensor Array 1366 | -9/Mines | Assisted by bots powering up and referring to "LRC-V3" 1426 | -9/Mines | Assembled infested the area 1431 | -9/Mines | Assisted by a Guerilla fighting off Assembled 1564 | -9/Mines | Learned 2 Materials zone layouts 1602 | -9/Mines | Learned Materials trap positions 1614 | -9/Mines | Build established: Skirmisher 1774 | -9/Mines | Discovered new exit (range 8) 1794 | -9/Mines | Entered Materials 1794 | -8/Materials | Accompanied by 3 allies 1794 | -8/Materials | Evolved 4 slots: Propulsion x1, Utility x3 1795 | -8/Materials | Identified exit to Factory 1796 | -8/Materials | Loaded intel: 14 trap records 2103 | -8/Materials | Build established: Scavenger-Skirmisher 2491 | -8/Materials | Lost 4 parts (1p2n1u) 2539 | -8/Materials | Discovered exit to Factory (range 12) 2866 | -8/Materials | Discovered exit to Factory (range 15) 3166 | -8/Materials | Identified exit to Garrison 3166 | -8/Materials | Entered Garrison 3188 | -8/Garrison | Triggered checkpoint 3233 | -8/Garrison | Garrison Relay disabled 3233 | -8/Garrison | Garrison Relay disabled 3376 | -8/Garrison | Triggered checkpoint 3385 | -8/Garrison | Triggered checkpoint 3414 | -8/Garrison | Destroyed 8 combat bots 3434 | -8/Garrison | Build established: Mutant 3473 | -8/Garrison | Phase Generator disabled 3477 | -8/Garrison | Discovered new exit (range 9) 3620 | -8/Garrison | Triggered checkpoint 3845 | -8/Garrison | Spotted B-75 Beast 3896 | -8/Garrison | Triggered checkpoint 3977 | -8/Garrison | Discovered new exit (range 6) 4020 | -8/Garrison | Triggered checkpoint 4049 | -8/Garrison | Learned Materials security intel 4242 | -8/Garrison | Destroyed B-75 Beast 4332 | -8/Garrison | Garrison Relay disabled 4390 | -8/Garrison | Triggered checkpoint 4494 | -8/Garrison | Discovered new exit (range 15) 4527 | -8/Garrison | Entered Materials 4704 | -8/Materials | Garrison activated, responded to threat 4751 | -8/Materials | Destroyed 7 combat bots 4816 | -8/Materials | Destroyed 7 combat bots 4927 | -8/Materials | First assault squad dispatched 5065 | -8/Materials | Core integrity fell below 50% 5135 | -8/Materials | Discovered exit to Factory (range 14) 5150 | -8/Materials | Entered Factory 5150 | -7/Factory | Evolved 2 slots: Propulsion x1, Weapon x1 5163 | -7/Factory | Lost 4 parts (1n2u1w) 6111 | -7/Factory | Garrison activated, responded to threat 6162 | -7/Factory | Discovered new exit (range 11) 6175 | -7/Factory | Entered another Factory area 6175 | -6/Factory | Evolved 2 slots: Power x1, Utility x1 6225 | -6/Factory | Sucked down chute 6225 | -6/Factory | Entered Waste 6226 | -6/Waste | Joined by Warlord forces that had cleared the area 6256 | -6/Waste | Found Damper Plating 6375 | -6/Waste | Found Damper Plating 6471 | -6/Waste | Discovered new exit (range 13) 6548 | -6/Waste | Build established: Skirmisher 6586 | -6/Waste | Entered Factory 6586 | -6/Factory | Accompanied by 20 allies 6974 | -6/Factory | Lost 4 allies 7038 | -6/Factory | Discovered new exit (range 16) 7286 | -6/Factory | First assault squad dispatched 7438 | -6/Factory | Identified exit to Lower Caves 7449 | -6/Factory | Entered Lower Caves 7449 | -6/Lower Caves | Accompanied by 13 allies 7457 | -6/Lower Caves | Attracted the attention of an 0b10 checkpoint 7464 | -6/Lower Caves | Met a Warlord Commander 7465 | -6/Lower Caves | Learned location of Warlord (-5) 7466 | -6/Lower Caves | Warlord Commander delivered Encrypted Comm Array 7468 | -6/Lower Caves | Found Encrypted Comm Array 7511 | -6/Lower Caves | Entered a destroyed Warlord outpost 7736 | -6/Lower Caves | Build established: Gunner 7841 | -6/Lower Caves | Encountered a Warlord checkpoint 8043 | -6/Lower Caves | Discovered new exit (range 5) 8148 | -6/Lower Caves | Identified exit to Lower Caves 8170 | -6/Lower Caves | Entered another Lower Caves area 8170 | -6/Lower Caves | Accompanied by 13 allies 8203 | -6/Lower Caves | Discovered new exit (range 8) 8210 | -6/Lower Caves | Identified exit to Factory 8292 | -6/Lower Caves | Found DCF Scrap (17 items) 8627 | -6/Lower Caves | Discovered new exit (range 6) 8635 | -6/Lower Caves | Identified exit to Zion 8855 | -6/Lower Caves | Attracted the attention of an 0b10 outpost 9262 | -6/Lower Caves | Build established: Derelict-Gunner 9392 | -6/Lower Caves | Entered Factory 9392 | -5/Factory | Accompanied by 10 allies 9392 | -5/Factory | Evolved 2 slots: Utility x2 9393 | -5/Factory | Identified exit to Extension 9522 | -5/Factory | Lost 7 allies 9592 | -5/Factory | Joined by Warlord Ghost squad 9680 | -5/Factory | Discovered new exit (range 19) 9699 | -5/Factory | Identified exit to Factory 9803 | -5/Factory | Destroyed 7 combat bots 9851 | -5/Factory | Build established: Scavenger-Skirmisher 9879 | -5/Factory | Repaired Hvy. Mass Driver+ 10042 | -5/Factory | Joined by Warlord Dakka squad 10102 | -5/Factory | Discovered exit to Factory (range 20) 10202 | -5/Factory | Joined by Warlord Chimera squad 10256 | -5/Factory | Cargo convoy interrupted 10369 | -5/Factory | Found Prototype Device 10369 | -5/Factory | Identified Femtoactuators 10374 | -5/Factory | Found Prototype Device 10374 | -5/Factory | Identified Exp. EM Shield 10412 | -5/Factory | Found PL-3XN's Ring of Power 10470 | -5/Factory | Lost 3 allies 10575 | -5/Factory | Lost 3 allies 10583 | -5/Factory | Core integrity fell below 50% 10592 | -5/Factory | Core integrity fell below 20% 10609 | -5/Factory | Destroyed 7 combat bots 10616 | -5/Factory | Lost 9 parts (4n4u1w) 10665 | -5/Factory | Destroyed by H-66 Slayer with Gauss Rifle Last Messages --------------- K-01 Serf collects debris. Penetrated by Slug. Dropped Com. Particle Reactor. Dropped Com. Linear Accelerator. R-10 Processor collects Arc Projector. K-01 Serf collects debris. Acquired 21 matter. System corrupted: Heat flow error (+205). K-01 Serf collects debris. Acquired 66 matter. Acquired 43 matter. Slammed into K-01 Serf. System corrupted: Component data lost. Acquired Enh. Optical Array. Penetrated by Slug. System corrupted: Matter fused (-8). Penetrated by Slug. Imp. Signal Interpreter destroyed. Penetrated by Slug. Slug penetrates Wall. Map ----- +----------------------------------------------------+ | ?????????????????????????????????????????????????? | | ?????????????????????????????????????????????????? | | ?????????????????????????????????????????????????? | | ?????????????????????????????????????????????????? | | ??????????????????????? ???????????????????????? | | ????????????????????? ???????????????????????? | | ????????????????????# ???????????????????????? | | ????????????????????# ???????????????????????? | | ????????????????????# ???????????????????????? | | ????????????????????# k???????????????????????? | | ????????????????????# ???????????????????????? | | ????????????????????# ???????????????????????? | | ????????????????????# u???????????????????????? | | ????????????????????# A ???????????????????????? | | ????????????????????# k#???????? #????????????? | | ????????????????????# ######### ##???????????? | | ????????????????????# ??????????? | | ????????????????????+ ??????????? | | ????????????????????# R !!! """ ????????????? | | ????????????????????# !!! R" ????????????? | | ????????????????????# !! """ ??????????????? | | ????????????????????# #???????????????? | | ????????????????????# !!! #???????????????? | | ????????????????????# !!! """ #???????????????? | | ????????????????????# !!! """ #???????????????? | | ????????????????????# A @ """ #???????????????? | | ????????????????????# #???????????????? | | ????????????????????# #???????????????? | | ????????????????????# ##############?????????? | | ????????????????????# #] [ #?????????? | | ????????????????????# # #?????????? | | ????????????????????+ + ! #?????????? | | ????????????????????# # #?????????? | | ????????????????????# #! !#?????????? | | ????????????????????# ##############?????????? | | ????????????????????# # #????????????????? | | ????????????????????# # """ #????????????????? | | ????????????????????# # """ #????????????????? | | ????????????????????+ # """ #????????????????? | | ????????????????????# # ###############??? | | ????????????????????# hh# ## #### | | ????????????????????# Ak # = ## + | | ????????????????????# # ?# ]] #### | | ????????????????????# u ###+#### ]] ## | | ????????????????????# u # ]] ## | | ????????????????????# t # ## | | ????????????????????# + [ ## | | ????????????????????# # ## | | ????????????????????# # #### | | ??????######################## # #??# | +----------------------------------------------------+ Best States ------------- Heat Dissipation 83 Coolant Potential 65 Energy Generation 41 Energy Capacity 290 Matter Stores 300 Matter Capacity 300 Sight Range 22 Robot Scan Range 20 Terrain Scan Density 10 Armor Coverage 1600 Resistance: KI 20 Resistance: EM 90 Utility Shielding 66 Weapon Shielding 66 Melee Speed Boost 50 Evasion (%) 55 Targeting Accuracy 8 Kinecelleration 30 Item Schematics ----------------- None Robot Schematics ------------------ None Fabricated ------------ Nothing Repaired ---------- Hvy. Mass Driver | 50% | -5/Factory Studied --------- Imp. Carbon-fiber Leg | -7/Factory | Hacked Flak Gun | -7/Factory | Hacked Flexi-carbon Leg | -5/Factory | Hacked Lgt. Fission Core | -5/Factory | Hacked Hvy. Mass Driver | -5/Factory | Hacked Imp. Titanium Leg | -5/Factory | Hacked Alien Tech Used ----------------- None Achievements -------------- I Like You, Cogmind Let Me Out Of Here Pyromaniac Challenges ------------ None Game ------ Seed TrapPitchforkModule Manual? 0 Play Time 01:20:04 Cumulative 66.6 hours Start 2026.07.31 @ 18:38:33 End 2026.07.31 @ 20:04:14 Sessions 1 Manual Loads 0 Difficulty Rogue Special Mode None Game No. 66 Rogue 66 Adventurer 0 Explorer 0 Win Type - Total 1 Types 1/0/0/0/0/0/0/0/0/0 Lore% 64 Gallery% 44 Achievement% 40 Wizard Run 0 Options --------- Layout 1 ASCII 0 Keyboard 0 Movement Mouse Keybinds 0 Fullscreen 1 Font 24/X11 Map View 50x35 Zoom Use 0% Tactical HUD 0 Map Filters NONE Filters NONE Steam 1 RUN: ea0b6230-750a-4fa7-b46b-faaf0542f68c